bitfinex-derivatives/quotes_BTCF0:USTF0_20250329
["timestamp","ask_amount","ask_price","bid_price","bid_amount"]
[1743277167581,0.1801185,82304.0,82292.0,0.0607817]
[1743277167867,0.1801185,82304.0,82303.0,0.1215484]
[1743277167868,0.21307851,82304.0,82303.0,0.1215484]
[1743277168074,0.33462541,82304.0,82303.0,0.1225884]
[1743277168575,0.33462541,82304.0,82303.0,0.00104]
[1743277168878,0.182346,82295.0,82294.0,0.1215535]
[1743277169178,0.18330601,82295.0,82294.0,0.1225535]
[1743277169367,0.06174141,82295.0,82294.0,0.1225535]
[1743277169765,0.12414141,82295.0,82294.0,0.1225535]
[1743277169968,0.12714141,82295.0,82294.0,0.1225535]
[1743277171977,0.12814141,82295.0,82294.0,0.1225535]
[1743277172681,0.14021657,82295.0,82294.0,0.1225535]
[1743277175078,0.12814141,82295.0,82294.0,0.1225535]
[1743277179171,0.12814141,82295.0,82294.0,0.1554535]
[1743277186677,0.12714141,82295.0,82294.0,0.1554535]
[1743277187180,0.12414141,82295.0,82294.0,0.1554535]
[1743277199578,0.12514141,82295.0,82294.0,0.1554535]
[1743277201976,0.12614141,82295.0,82294.0,0.1554535]
[1743277204282,0.12452021,82295.0,82294.0,0.1854535]
[1743277204888,0.21647719,82302.0,82299.0,0.0607765]
[1743277205089,0.2177172,82302.0,82301.0,0.4823513]
[1743277205381,0.2177172,82302.0,82301.0,0.4835913]
[1743277205582,0.2177172,82302.0,82301.0,0.5478913]
[1743277206289,0.2187172,82302.0,82301.0,0.5478913]
[1743277206482,0.2207172,82302.0,82301.0,0.5478913]
[1743277207584,0.21947719,82302.0,82301.0,0.5478913]
[1743277207784,0.2207172,82302.0,82301.0,0.5478913]
[1743277207981,0.28948927,82317.0,82305.0,0.0607721]
[1743277208280,0.1215301,82316.0,82315.0,0.1215292]
[1743277208576,0.1215301,82316.0,82315.0,0.2461692]
[1743277208887,0.1215301,82316.0,82315.0,0.2791692]
[1743277209088,0.28948927,82317.0,82316.0,0.1215292]
[1743277209282,0.28948927,82317.0,82316.0,0.16578765]
[1743277209680,0.21773472,82323.0,82321.0,0.0607603]
[1743277209992,0.21773472,82323.0,82322.0,0.1518203]
[1743277210289,0.21773472,82323.0,82322.0,0.1535003]
[1743277210491,0.33925352,82323.0,82322.0,0.1535003]
[1743277212481,0.33925352,82323.0,82322.0,0.03198]
[1743277212482,0.40325352,82323.0,82322.0,0.03198]
[1743277212786,0.40325352,82323.0,82322.0,0.0303]
[1743277213391,0.1215307,82315.0,82314.0,0.46315071]
[1743277213592,0.1215307,82315.0,82314.0,0.34179071]
[1743277213887,0.1215307,82315.0,82314.0,0.34179161]
[1743277214684,0.1215307,82315.0,82314.0,0.37369161]
[1743277215090,0.1522307,82315.0,82314.0,0.37369161]
[1743277215390,0.1655211,82315.0,82314.0,0.37369161]
[1743277216486,0.1532307,82315.0,82314.0,0.37369161]
[1743277216787,0.0317,82315.0,82314.0,0.37369161]
[1743277216992,0.1225307,82315.0,82314.0,0.37369161]
[1743277217290,0.1225307,82315.0,82314.0,0.1550721]
[1743277217993,0.001,82315.0,82314.0,0.1550721]
[1743277218693,0.1225307,82315.0,82314.0,0.1550721]
[1743277219303,0.1225307,82315.0,82314.0,0.1879721]
[1743277221794,0.1225307,82315.0,82314.0,0.2191721]
[1743277224487,0.1841307,82315.0,82314.0,0.2191721]
[1743277227893,0.1532307,82315.0,82314.0,0.2191721]
[1743277230403,0.0004,82340.0,82330.0,0.1215085]
[1743277230587,0.0301,82334.0,82330.0,0.1231485]
[1743277230897,0.0312,82339.0,82338.0,0.1214967]
[1743277231103,0.0312,82339.0,82338.0,0.1231367]
[1743277231399,0.0312,82339.0,82338.0,0.13544314]
[1743277231599,0.21752781,82342.0,82341.0,0.1214923]
[1743277231800,0.21752781,82342.0,82341.0,0.1231323]
[1743277233700,0.33901861,82342.0,82341.0,0.1231323]
[1743277234102,0.21752781,82342.0,82341.0,0.2460923]
[1743277235007,0.1214829,82348.0,82341.0,0.2460923]
[1743277235008,0.1214829,82348.0,82347.0,0.1214834]
[1743277235199,0.1214829,82348.0,82347.0,0.1231234]
[1743277235702,0.12148,82350.0,82349.0,0.121479]
[1743277235903,0.12148,82350.0,82349.0,0.123119]
[1743277236102,0.0301,82351.0,82350.0,0.121479]
[1743277236302,0.0301,82351.0,82350.0,0.155319]
[1743277236607,0.1515775,82351.0,82350.0,0.155319]
[1743277236803,0.0301,82351.0,82350.0,0.155319]
[1743277237202,0.1214746,82353.0,82352.0,0.1214761]
[1743277237403,0.1214746,82353.0,82352.0,0.1231161]
[1743277238110,0.13383777,82353.0,82352.0,0.1231161]
[1743277238507,0.13383777,82353.0,82352.0,0.13520161]
[1743277238708,0.13383777,82353.0,82352.0,0.1231161]
[1743277241505,0.13383777,82353.0,82352.0,0.00164]
[1743277242108,0.13383777,82353.0,82352.0,0.1231161]
[1743277246115,0.13383777,82353.0,82352.0,0.00164]
[1743277246412,0.13383777,82353.0,82352.0,0.1231161]
[1743277249220,0.13383777,82353.0,82352.0,0.1538161]
[1743277249615,0.16383777,82353.0,82352.0,0.1538161]
[1743277255525,0.13383777,82353.0,82352.0,0.1538161]
[1743277256422,0.16693777,82353.0,82352.0,0.1538161]
[1743277257421,0.1545746,82353.0,82352.0,0.1538161]
[1743277258115,0.1846746,82353.0,82352.0,0.1538161]
[1743277267830,0.0331,82353.0,82352.0,0.1538161]
[1743277268132,0.19307945,82354.0,82353.0,0.1214746]
[1743277268334,0.31455255,82354.0,82353.0,0.1872346]
[1743277268929,0.19307945,82354.0,82353.0,0.1872346]
[1743277269843,0.1333438,82354.0,82353.0,0.1872346]
[1743277270539,0.1964438,82354.0,82353.0,0.1872346]
[1743277276645,0.0311,82354.0,82353.0,0.1872346]
[1743277276837,0.21752781,82360.0,82354.0,0.1214731]
[1743277277042,0.21752781,82360.0,82359.0,0.1214657]
[1743277277237,0.21752781,82360.0,82359.0,0.1231457]
[1743277277846,0.21752781,82360.0,82359.0,0.1856457]
[1743277278957,0.0304,82364.0,82363.0,0.1214598]
[1743277278958,0.2125884,82364.0,82363.0,0.1214598]
[1743277279260,0.21752781,82365.0,82364.0,0.1214584]
[1743277279458,0.21752781,82365.0,82364.0,0.1535584]
[1743277279759,0.21752781,82365.0,82364.0,0.1858984]
[1743277279760,0.33898471,82365.0,82364.0,0.1858984]
[1743277279955,0.40328471,82365.0,82364.0,0.1858984]
[1743277280451,0.21752781,82365.0,82364.0,0.1858984]
[1743277283560,0.1526497,82370.0,82369.0,0.121451]
[1743277283855,0.1526497,82370.0,82369.0,0.123131]
[1743277284558,0.1526497,82370.0,82369.0,0.184531]
[1743277285275,0.16477083,82370.0,82369.0,0.184531]
[1743277286165,0.0312,82370.0,82369.0,0.184531]
[1743277286355,0.0004,82372.0,82371.0,0.121448]
[1743277286556,0.0004,82372.0,82371.0,0.123088]
[1743277287465,0.1218466,82372.0,82371.0,0.00164]
[1743277287663,0.1851466,82372.0,82371.0,0.123088]
[1743277288652,0.0311,82372.0,82371.0,0.123088]
[1743277289767,0.1525466,82372.0,82371.0,0.123088]
[1743277289964,0.0004,82372.0,82371.0,0.123088]
[1743277292459,0.0004,82372.0,82371.0,0.217688]
[1743277297371,0.1218466,82372.0,82371.0,0.217688]
[1743277297570,0.1218466,82372.0,82371.0,0.184988]
[1743277297771,0.0004,82372.0,82371.0,0.184988]
[1743277298271,0.0613,82372.0,82371.0,0.184988]
[1743277299067,0.1827466,82372.0,82371.0,0.184988]
[1743277299666,0.1827466,82372.0,82371.0,0.153888]
[1743277314072,0.1827466,82372.0,82371.0,0.37250751]
[1743277318485,0.1827466,82372.0,82371.0,0.153888]
[1743277320282,0.1827466,82372.0,82371.0,0.16961414]
[1743277321494,0.1827466,82372.0,82371.0,0.153888]
[1743277322395,0.1827466,82372.0,82371.0,0.16944005]
[1743277322992,0.1827466,82372.0,82371.0,0.18479158]
[1743277323382,0.1519466,82372.0,82371.0,0.18479158]
[1743277323988,0.1519466,82372.0,82371.0,0.16944005]
[1743277324395,0.1519466,82372.0,82371.0,0.16942677]
[1743277324891,0.1519466,82372.0,82371.0,0.19972677]
[1743277325891,0.0004,82372.0,82371.0,0.19972677]
[1743277326097,0.1843318,82382.0,82381.0,0.1214333]
[1743277326292,0.0629,82382.0,82381.0,0.1230733]
[1743277326504,0.1530318,82382.0,82381.0,0.1230733]
[1743277327192,0.0316,82382.0,82381.0,0.1862733]
[1743277327490,0.18193556,82385.0,82384.0,0.1214289]
[1743277327694,0.18193556,82385.0,82384.0,0.13874671]
[1743277328293,0.30336296,82385.0,82384.0,0.13874671]
[1743277329392,0.30336296,82385.0,82384.0,0.1231889]
[1743277329795,0.30336296,82385.0,82384.0,0.13877136]
[1743277331095,0.1214274,82385.0,82384.0,0.13877136]
[1743277331598,0.1214274,82385.0,82384.0,0.16937136]
[1743277332101,0.4822274,82385.0,82384.0,0.16937136]
[1743277332293,0.4822274,82385.0,82384.0,0.04794246]
[1743277332492,0.4822274,82385.0,82384.0,0.03236]
[1743277332693,0.5131274,82385.0,82384.0,0.1537889]
[1743277337397,0.5131274,82385.0,82384.0,0.00176]
[1743277341201,0.1214318,82382.0,82381.0,0.0322]
[1743277342100,0.1214333,82381.0,82380.0,0.0327]
[1743277342301,0.1530333,82381.0,82380.0,0.0327]
[1743277342502,0.1851333,82381.0,82380.0,0.0327]
[1743277346499,0.1214333,82381.0,82380.0,0.0327]
[1743277346813,0.2151333,82381.0,82380.0,0.0327]
[1743277348305,0.2151333,82381.0,82380.0,0.03434]
[1743277348505,0.2151333,82381.0,82380.0,0.0327]
[1743277348717,0.2151333,82381.0,82380.0,0.03434]
[1743277349020,0.2151333,82381.0,82380.0,0.0327]
[1743277349210,0.2151333,82381.0,82380.0,0.03438]
[1743277349405,0.2151333,82381.0,82380.0,0.0327]
[1743277349604,0.5759333,82381.0,82380.0,0.0327]
[1743277350019,0.5759333,82381.0,82380.0,0.03434]
[1743277351907,0.5759333,82381.0,82380.0,0.0327]
[1743277352107,0.1214333,82381.0,82380.0,0.1558548]
[1743277352308,0.1214333,82381.0,82380.0,0.1889548]
[1743277355508,0.1214311,82383.0,82382.0,0.1821441]
[1743277355709,0.1214311,82383.0,82382.0,0.0623552]
[1743277355914,0.1214311,82383.0,82382.0,0.1255552]
[1743277356316,0.1214311,82383.0,82382.0,0.14107654]
[1743277356520,0.1214311,82383.0,82382.0,0.1255552]
[1743277357420,0.1214311,82383.0,82382.0,0.14111933]
[1743277357621,0.1214311,82383.0,82382.0,0.1255552]
[1743277358415,0.1214311,82383.0,82382.0,0.14110249]
[1743277358616,0.1214311,82383.0,82382.0,0.1255552]
[1743277358816,0.1214311,82383.0,82382.0,0.1410774]
[1743277359015,0.0607144,82385.0,82384.0,0.1214289]
[1743277359218,0.0607144,82385.0,82384.0,0.1230689]
[1743277359613,0.0607144,82385.0,82384.0,0.20222523]
[1743277359827,0.03960811,82394.0,82386.0,0.1214259]
[1743277360026,0.0607102,82390.0,82387.0,0.1824244]
[1743277360324,0.121823,82388.0,82387.0,0.1840644]
[1743277362224,0.0004,82388.0,82387.0,0.1840644]
[1743277362614,0.0004,82388.0,82387.0,0.20007346]
[1743277363016,0.0004,82388.0,82387.0,0.56087346]
[1743277363620,0.0004,82388.0,82387.0,0.57619592]
[1743277363821,0.0004,82388.0,82387.0,0.60190483]
[1743277365019,0.0004,82388.0,82387.0,0.57619592]
[1743277365331,0.0607066,82395.0,82394.0,0.1214141]
[1743277365530,0.1214076,82399.0,82398.0,0.1214068]
[1743277365828,0.1214076,82399.0,82398.0,0.13836926]
[1743277366031,0.1214076,82399.0,82398.0,0.16846926]
[1743277367624,0.1,82400.0,82399.0,0.1214068]
[1743277367833,0.2214053,82400.0,82399.0,0.1551468]
[1743277368129,0.1,82400.0,82399.0,0.18659358]
[1743277368322,0.3608,82419.0,82412.0,0.1820778]
[1743277368323,0.0303,82415.0,82412.0,0.1820778]
[1743277368521,0.0303,82415.0,82413.0,0.0635]
[1743277368522,0.1213861,82414.0,82413.0,0.0635]
[1743277368721,0.1213861,82414.0,82413.0,0.20184716]
[1743277368924,0.1849861,82414.0,82413.0,0.20184716]
[1743277370323,0.1213861,82414.0,82413.0,0.20184716]
[1743277371433,0.1531861,82414.0,82413.0,0.20184716]
[1743277371633,0.1531861,82414.0,82413.0,0.17044716]
[1743277371835,0.1862861,82414.0,82413.0,0.17044716]
[1743277379330,0.1862861,82414.0,82413.0,0.20234716]
[1743277379932,0.1862861,82414.0,82413.0,0.04906246]
[1743277380130,0.1862861,82414.0,82413.0,0.17044856]
[1743277381825,0.0649,82414.0,82413.0,0.17044856]
[1743277382032,0.1862847,82414.0,82413.0,0.20304856]
[1743277382837,0.1862847,82414.0,82413.0,0.17044856]
[1743277386626,0.0649,82414.0,82413.0,0.17044856]
[1743277386833,0.0318,82414.0,82413.0,0.17044856]
[1743277387442,0.0307,82419.0,82418.0,0.1213788]
[1743277387641,0.0639,82419.0,82418.0,0.1230588]
[1743277387940,0.0639,82419.0,82418.0,0.13838126]
[1743277388337,0.1852773,82419.0,82418.0,0.20158126]
[1743277391032,0.1852773,82419.0,82418.0,0.08020246]
[1743277391237,0.1852773,82419.0,82418.0,0.20158126]
[1743277393739,0.1852773,82419.0,82418.0,0.2178517]
[1743277393943,0.1852773,82419.0,82418.0,0.01700246]
[1743277394246,0.1852773,82419.0,82418.0,0.01532246]
[1743277394438,0.1852773,82419.0,82418.0,0.01696246]
[1743277395146,0.1852773,82419.0,82418.0,0.05026246]
[1743277396741,0.1852773,82419.0,82418.0,0.0333]
[1743277396942,0.1852773,82419.0,82418.0,0.03494]
[1743277397539,0.1213773,82419.0,82418.0,0.1563188]
[1743277397746,0.0004,82420.0,82419.0,0.1213773]
[1743277397951,0.3608,82430.0,82429.0,0.1213626]
[1743277398152,0.4821611,82430.0,82429.0,0.1230026]
[1743277398346,0.4941154,82430.0,82429.0,0.00164]
[1743277398743,0.4941154,82430.0,82429.0,0.1864026]
[1743277398940,0.5573154,82430.0,82429.0,0.1864026]
[1743277399144,0.1965154,82430.0,82429.0,0.1864026]
[1743277400139,0.1638154,82430.0,82429.0,0.1864026]
[1743277403042,0.1518611,82430.0,82429.0,0.1864026]
[1743277404851,0.0305,82430.0,82429.0,0.1864026]
[1743277405953,0.1518611,82430.0,82429.0,0.1864026]
[1743277406457,0.1849611,82430.0,82429.0,0.1864026]
[1743277407655,0.0305,82430.0,82429.0,0.1864026]
[1743277407856,0.1518611,82430.0,82429.0,0.1864026]
[1743277409066,0.1518611,82430.0,82429.0,0.06504]
[1743277409259,0.1518611,82430.0,82429.0,0.1864026]
[1743277409458,0.1847611,82430.0,82429.0,0.1864026]
[1743277412960,0.1847611,82430.0,82429.0,0.06504]
[1743277413266,0.1847611,82430.0,82429.0,0.03274]
[1743277417559,0.1847611,82430.0,82429.0,0.1541026]
[1743277417863,0.1847611,82430.0,82429.0,0.03274]
[1743277418365,0.1847611,82430.0,82429.0,0.00164]
[1743277418562,0.1213729,82422.0,82421.0,0.0317]
[1743277418763,0.1213729,82422.0,82421.0,0.03342]
[1743277419455,0.1837729,82422.0,82421.0,0.03342]
[1743277423363,0.1837729,82422.0,82421.0,0.06622]
[1743277425862,0.1837729,82422.0,82421.0,0.03342]
[1743277426567,0.1837729,82422.0,82421.0,0.1547944]
[1743277429263,0.1837729,82422.0,82421.0,0.03342]
[1743277430074,0.1837729,82422.0,82421.0,0.1547944]
[1743277430467,0.1837729,82422.0,82421.0,0.03342]
[1743277431770,0.1837729,82422.0,82421.0,0.1547944]
[1743277431971,0.1837729,82422.0,82421.0,0.1874944]
[1743277434271,0.1837729,82422.0,82421.0,0.06612]
[1743277436078,0.1837729,82422.0,82421.0,0.0644]
[1743277436973,0.5445729,82422.0,82421.0,0.0644]
[1743277442474,0.4821729,82422.0,82421.0,0.0644]
[1743277442680,0.1213729,82422.0,82421.0,0.0644]
[1743277442874,0.1820585,82424.0,82423.0,0.1213714]
[1743277443076,0.1820585,82424.0,82423.0,0.00172]
[1743277443575,0.1820585,82424.0,82423.0,0.06532]
[1743277443782,0.1820585,82424.0,82423.0,0.0636]
[1743277443976,0.1820585,82424.0,82423.0,0.06524]
[1743277448781,0.6078585,82424.0,82423.0,0.06524]
[1743277449084,0.1213744,82421.0,82420.0,0.217887]
[1743277449280,0.12249441,82421.0,82420.0,0.219007]
[1743277449877,0.18739441,82421.0,82420.0,0.219007]
[1743277450775,0.18739441,82421.0,82420.0,0.00112]
[1743277451177,0.54819441,82421.0,82420.0,0.00112]
[1743277452490,0.18739441,82421.0,82420.0,0.00112]
[1743277452690,0.54819441,82421.0,82420.0,0.00112]
[1743277454579,0.1213788,82418.0,82417.0,0.0303]
[1743277454785,0.1220188,82418.0,82417.0,0.0303]
[1743277455579,0.1529188,82418.0,82417.0,0.0303]
[1743277456294,0.1529188,82418.0,82417.0,0.0315]
[1743277456483,0.1529188,82418.0,82417.0,0.0303]
[1743277456682,0.1529188,82418.0,82417.0,0.03142]
[1743277457386,0.1529188,82418.0,82417.0,0.0303]
[1743277460887,0.1529188,82418.0,82410.0,0.00018204]
[1743277460888,0.1213891,82411.0,82410.0,0.00018204]
[1743277461191,0.1213891,82411.0,82402.0,0.248987]
[1743277461192,0.1214009,82403.0,82402.0,0.187587]
[1743277461394,0.48332091,82403.0,82402.0,0.188747]
[1743277462094,0.54682091,82403.0,82402.0,0.188747]
[1743277462683,0.55885651,82403.0,82402.0,0.188747]
[1743277462983,0.55885651,82403.0,82402.0,0.189747]
[1743277464692,0.55885651,82403.0,82402.0,0.190747]
[1743277465191,0.70417588,82403.0,82402.0,0.00316]
[1743277465495,0.70417588,82403.0,82402.0,0.002]
[1743277469105,0.70417588,82403.0,82399.0,0.033]
[1743277469106,0.1214053,82400.0,82399.0,0.033]
[1743277469401,0.1214112,82396.0,82395.0,0.00048546]
[1743277469605,0.4829312,82396.0,82395.0,0.00048546]
[1743277470293,0.1194127,82395.0,82394.0,0.00018204]
[1743277470491,0.1504527,82395.0,82394.0,0.00018204]
[1743277470802,0.1829527,82395.0,82394.0,0.00018204]
[1743277471298,0.1799527,82395.0,82394.0,0.00018204]
[1743277472097,0.1769527,82395.0,82394.0,0.00018204]
[1743277472801,0.1769527,82395.0,82394.0,0.00618204]
[1743277477204,0.5377527,82395.0,82394.0,0.00618204]
[1743277477503,0.1769527,82395.0,82394.0,0.00618204]
[1743277477709,0.5052527,82395.0,82394.0,0.00618204]
[1743277484119,0.1444527,82395.0,82394.0,0.00618204]
[1743277484301,0.5052527,82395.0,82394.0,0.00618204]
[1743277487313,0.1444527,82395.0,82394.0,0.00618204]
[1743277487513,0.5052527,82395.0,82394.0,0.00618204]
[1743277490613,0.5052527,82395.0,82394.0,0.03878204]
[1743277491020,0.65057207,82395.0,82394.0,0.03878204]
[1743277492421,0.1214259,82386.0,82385.0,0.0619]
[1743277492616,0.48334591,82386.0,82385.0,0.06302]
[1743277492821,0.48334591,82386.0,82385.0,0.03202]
[1743277493119,0.48334591,82386.0,82385.0,0.00112]
[1743277493317,0.48334591,82386.0,82380.0,0.031]
[1743277493318,0.1214333,82381.0,82380.0,0.0619]
[1743277493519,0.1222333,82381.0,82380.0,0.0627]
[1743277494121,0.1479333,82381.0,82380.0,0.0627]
[1743277495015,0.1489333,82381.0,82380.0,0.0677]
[1743277495219,0.1439333,82381.0,82380.0,0.0677]
[1743277495723,0.1449333,82381.0,82380.0,0.2273348]
[1743277496109,0.1449333,82381.0,82380.0,0.1059]
[1743277496330,0.15727909,82381.0,82380.0,0.1059]
[1743277497822,0.15727909,82381.0,82380.0,0.2273348]
[1743277498024,0.16637521,82381.0,82380.0,0.2273348]
[1743277498225,0.16637521,82381.0,82380.0,0.1059]
[1743277500214,0.19837521,82381.0,82380.0,0.1059]
[1743277500414,0.19837521,82381.0,82380.0,0.1051]
[1743277502224,0.19837521,82381.0,82380.0,0.10598]
[1743277502524,0.19837521,82381.0,82380.0,0.1051]
[1743277504429,0.19837521,82381.0,82380.0,0.10598]
[1743277504628,0.19837521,82381.0,82380.0,0.1051]
[1743277504927,0.19837521,82381.0,82380.0,0.1059]
[1743277505820,0.19837521,82381.0,82380.0,0.1051]
[1743277506323,0.19837521,82381.0,82380.0,0.1059]
[1743277508233,0.15402942,82381.0,82380.0,0.1059]
[1743277508427,0.15402942,82381.0,82380.0,0.1051]
[1743277508628,0.16648457,82381.0,82380.0,0.10594]
[1743277508828,0.16648457,82381.0,82380.0,0.1051]
[1743277509030,0.16648457,82381.0,82380.0,0.10598]
[1743277509423,0.19708457,82381.0,82380.0,0.1051]
[1743277509622,0.19708457,82381.0,82380.0,0.0741]
[1743277509920,0.22838457,82381.0,82380.0,0.0432]
[1743277512428,0.22838457,82381.0,82380.0,0.0764]
[1743277512633,0.22838457,82381.0,82380.0,0.0772]
[1743277513533,0.22838457,82381.0,82380.0,0.0764]
[1743277514337,0.58918457,82381.0,82380.0,0.0764]
[1743277516137,0.58918457,82381.0,82380.0,0.0432]
[1743277516327,0.1214377,82378.0,82377.0,0.00018204]
[1743277516635,0.121451,82369.0,82368.0,0.0328]
[1743277516836,0.483051,82369.0,82368.0,0.03368]
[1743277517029,0.1214554,82366.0,82365.0,0.29042347]
[1743277517224,0.1221754,82366.0,82365.0,0.29114347]
[1743277517627,0.1854754,82366.0,82365.0,0.29114347]
[1743277519340,0.06502,82366.0,82365.0,0.41260037]
[1743277519534,0.00072,82366.0,82365.0,0.41260037]
[1743277519729,0.00072,82366.0,82365.0,0.47740037]
[1743277520937,0.00072,82366.0,82365.0,0.83820037]
[1743277521136,0.0607253,82370.0,82369.0,0.121451]
[1743277521438,0.0614453,82370.0,82369.0,0.122091]
[1743277521738,0.0607253,82370.0,82369.0,0.122091]
[1743277521944,0.0614453,82370.0,82369.0,0.122091]
[1743277522125,0.0614453,82370.0,82369.0,0.185091]
[1743277524639,0.0939453,82370.0,82369.0,0.185091]
[1743277527739,0.00072,82370.0,82369.0,0.185091]
[1743277527940,0.109272,82374.0,82373.0,0.1214451]
[1743277528246,0.110032,82374.0,82373.0,0.1221251]
[1743277528829,0.110032,82374.0,82373.0,0.1844251]
[1743277529330,0.00094204,82374.0,82373.0,0.19641375]
[1743277529740,0.00094204,82374.0,82373.0,0.1844251]
[1743277530341,0.00194204,82374.0,82373.0,0.1844251]
[1743277530540,0.00294204,82374.0,82373.0,0.1844251]
[1743277531151,0.12438564,82374.0,82373.0,0.1844251]
[1743277531346,0.00294204,82374.0,82373.0,0.1966146]
[1743277534545,0.12438564,82374.0,82373.0,0.1844251]
[1743277534846,0.15628564,82374.0,82373.0,0.1844251]
[1743277536050,0.00294204,82374.0,82373.0,0.1844251]
[1743277541252,0.00218204,82374.0,82373.0,0.1844251]
[1743277543155,0.00118204,82374.0,82373.0,0.1844251]
[1743277543354,0.00018204,82374.0,82373.0,0.1844251]
[1743277545255,0.14545329,82387.0,82386.0,0.1214259]
[1743277545439,0.14545329,82387.0,82386.0,0.1220659]
[1743277545440,0.17927329,82387.0,82386.0,0.1220659]
[1743277545840,0.30069769,82387.0,82386.0,0.1220659]
[1743277546045,0.17927329,82387.0,82386.0,0.1220659]
[1743277546247,0.03382,82387.0,82386.0,0.1220659]
[1743277546446,0.03682,82387.0,82386.0,0.1220659]
[1743277546645,0.03982,82387.0,82386.0,0.1220659]
[1743277547047,0.03982,82387.0,82386.0,0.16447814]
[1743277547646,0.07042,82387.0,82386.0,0.16447814]
[1743277551757,0.0697,82387.0,82386.0,0.16447814]
[1743277551944,0.0366,82387.0,82386.0,0.16447814]
[1743277553059,0.0366,82387.0,82386.0,0.52527814]
[1743277553257,0.006,82387.0,82386.0,0.52527814]
[1743277553458,0.006,82387.0,82386.0,0.19477814]
[1743277553661,0.0321,82393.0,82392.0,0.1214171]
[1743277553859,0.0321,82393.0,82392.0,0.1220571]
[1743277554565,0.0321,82393.0,82392.0,0.2143571]
[1743277554759,0.0371,82393.0,82392.0,0.2143571]
[1743277556061,0.0421,82393.0,82392.0,0.2143571]
[1743277563060,0.0606971,82408.0,82403.0,0.1214009]
[1743277563273,0.00112,82404.0,82403.0,0.4828409]
[1743277563459,0.0004,82404.0,82403.0,0.4828409]
[1743277563662,0.00112,82404.0,82403.0,0.5460409]
[1743277563856,0.0004,82404.0,82403.0,0.5460409]
[1743277564271,0.01112,82404.0,82403.0,0.5460409]
[1743277565371,0.0104,82404.0,82403.0,0.5460409]
[1743277567163,0.0104,82404.0,82403.0,0.55814827]
[1743277569071,1e-08,82404.0,82403.0,0.55814827]
[1743277569968,0.1836892,82411.0,82410.0,0.1213906]
[1743277570169,0.1844892,82411.0,82410.0,0.2443506]
[1743277570561,0.1844892,82411.0,82410.0,0.6051506]
[1743277570762,0.1844892,82411.0,82410.0,0.6685506]
[1743277572276,0.0631,82411.0,82410.0,0.6695506]
[1743277572475,0.0623,82411.0,82410.0,0.6695506]
[1743277572676,0.06302,82411.0,82410.0,0.6695506]
[1743277573077,0.06302,82411.0,82410.0,0.6685506]
[1743277573976,0.06302,82411.0,82410.0,0.6705506]
[1743277574183,0.06302,82411.0,82410.0,0.3097506]
[1743277575080,0.1844091,82411.0,82410.0,0.3097506]
[1743277575287,0.06302,82411.0,82410.0,0.3097506]
[1743277575880,0.06302,82411.0,82410.0,0.3087506]
[1743277576179,0.06302,82411.0,82410.0,0.3077506]
[1743277576379,0.06302,82411.0,82410.0,0.3087506]
[1743277576981,0.06302,82411.0,82410.0,0.3077506]
[1743277577182,0.06302,82411.0,82410.0,0.3087506]
[1743277577384,0.0623,82411.0,82410.0,0.3087506]
[1743277577584,0.06306,82411.0,82410.0,0.3087506]
[1743277577786,0.0631,82411.0,82410.0,0.3087506]
[1743277579378,0.0623,82411.0,82410.0,0.3077506]
[1743277579584,0.0623,82411.0,82410.0,0.3097506]
[1743277580184,0.0623,82411.0,82410.0,0.3087506]
[1743277580390,0.0623,82411.0,82410.0,0.3097506]
[1743277581191,0.0623,82411.0,82410.0,0.6705506]
[1743277583493,0.0623,82411.0,82410.0,0.3097506]
[1743277583793,0.1836891,82411.0,82410.0,0.2789106]
[1743277583979,0.1836891,82411.0,82410.0,0.1241106]
[1743277584290,0.1844091,82411.0,82410.0,0.1241106]
[1743277585085,0.1844091,82411.0,82410.0,0.1231106]
[1743277585594,0.1844091,82411.0,82410.0,0.1221106]
[1743277586890,0.06302,82411.0,82410.0,0.1221106]
[1743277587290,0.0623,82411.0,82410.0,0.1221106]
[1743277587790,0.06302,82411.0,82410.0,0.1221106]
[1743277589593,0.06302,82411.0,82410.0,0.1531106]
[1743277590293,0.1844091,82411.0,82410.0,0.1531106]
[1743277590881,0.06302,82411.0,82410.0,0.1531106]
[1743277591593,0.06302,82411.0,82410.0,0.1541106]
[1743277592289,0.06302,82411.0,82410.0,0.1531106]
[1743277592290,0.1844091,82411.0,82410.0,0.1531106]
[1743277593195,0.06302,82411.0,82410.0,0.1531106]
[1743277593790,0.06302,82411.0,82410.0,0.1541106]
[1743277594885,0.0623,82411.0,82410.0,0.1541106]
[1743277595287,0.0631,82411.0,82410.0,0.1541106]
[1743277597286,0.00018128,82412.0,82411.0,0.1213891]
[1743277597493,0.00090128,82412.0,82411.0,0.1541291]
[1743277597689,0.00090128,82412.0,82411.0,0.1866291]
[1743277598193,0.00018128,82412.0,82411.0,0.1866291]
[1743277599595,0.00018128,82412.0,82411.0,0.1876291]
[1743277604190,0.00018128,82412.0,82411.0,1.00103574]
[1743277605191,0.00018128,82412.0,82411.0,1.36183574]
[1743277608293,0.00018128,82412.0,82411.0,1.36683574]
[1743277609094,0.0314,82413.0,82412.0,0.1213876]
[1743277609294,0.0314,82413.0,82412.0,0.1220676]
[1743277609498,0.0314,82413.0,82412.0,0.1881676]
[1743277609800,0.1527861,82413.0,82412.0,0.1220676]
[1743277610303,0.1649331,82413.0,82412.0,0.1220676]
[1743277611307,0.1649331,82413.0,82412.0,0.1230676]
[1743277611794,0.1649331,82413.0,82412.0,0.1220676]
[1743277612798,0.1669331,82413.0,82412.0,0.1220676]
[1743277613101,0.1676531,82413.0,82412.0,0.1220676]
[1743277623110,0.03412,82413.0,82412.0,0.1220676]
[1743277623313,0.1555061,82413.0,82412.0,0.1220676]
[1743277624012,0.03412,82413.0,82412.0,0.1548676]
[1743277624213,0.1555061,82413.0,82412.0,0.1848676]
[1743277624710,0.1545061,82413.0,82412.0,0.1848676]
[1743277625215,0.1535061,82413.0,82412.0,0.1848676]
[1743277628306,0.03212,82413.0,82412.0,0.1848676]
[1743277628504,0.0004,82420.0,82419.0,0.1213773]
[1743277628703,0.0658,82420.0,82419.0,0.1220973]
[1743277628912,0.065,82420.0,82419.0,0.1220973]
[1743277629311,0.1870958,82420.0,82419.0,0.1837973]
[1743277629506,0.1870958,82420.0,82419.0,0.19949636]
[1743277629812,0.1890958,82420.0,82419.0,0.19949636]
[1743277630919,0.1910958,82420.0,82419.0,0.19949636]
[1743277632710,0.06972,82420.0,82419.0,0.19949636]
[1743277632921,0.00512,82420.0,82419.0,0.19949636]
[1743277633117,0.1533661,82427.0,82424.0,0.1213699]
[1743277633329,0.2148091,82427.0,82426.0,0.121367]
[1743277633514,0.061443,82427.0,82426.0,0.13770606]
[1743277633708,0.061443,82427.0,82426.0,0.17090606]